Body Name,Body,Transaction Date,Value,Supplier,Description,Purchase Type,Cost Center,Department,Section
Chorley Borough Council,http://Statistics.Data.gov.uk/id/local-Authority/30UE,01/04/2023,19.00,Shutterstock,Subscription,Online Purchase,4301,EARL - Communities,23A - Housing Solutions & Publ
Chorley Borough Council,http://Statistics.Data.gov.uk/id/local-Authority/30UE,04/04/2023,61.23,Asda,Purchases for Easter Bingo Event,Store Purchase,5400,EARL - Communities,23A - Housing Solutions & Publ
Chorley Borough Council,http://Statistics.Data.gov.uk/id/local-Authority/30UE,12/04/2023,48.32,Networld Sports,5 a side football,Online Purchase,5400,EARL - Communities,23A - Housing Solutions & Publ
Chorley Borough Council,http://Statistics.Data.gov.uk/id/local-Authority/30UE,14/04/2023,26.76,Wristbands,Wristbands for elections,Online Purchase,4324,EARL - Communities,23A - Housing Solutions & Publ
Chorley Borough Council,http://Statistics.Data.gov.uk/id/local-Authority/30UE,14/04/2023,62.72,PC Ink Office Pad,Election purpose purchase,Online Purchase,4324,EARL - Communities,23A - Housing Solutions & Publ
Chorley Borough Council,http://Statistics.Data.gov.uk/id/local-Authority/30UE,19/04/2023,27.75,Argos,Tatton furnishings,Store Purchase,5129,EARL - Communities,23A - Housing Solutions & Publ
Chorley Borough Council,http://Statistics.Data.gov.uk/id/local-Authority/30UE,19/04/2023,35.00,Argos,Tatton furnishings,Store Purchase,5129,EARL - Communities,23A - Housing Solutions & Publ
Chorley Borough Council,http://Statistics.Data.gov.uk/id/local-Authority/30UE,19/04/2023,52.30,Sainsburys,Primrose,Store Purchase,5925,EARL - Communities,23A - Housing Solutions & Publ
Chorley Borough Council,http://Statistics.Data.gov.uk/id/local-Authority/30UE,26/04/2023,102.90,Asda,Tatton homewear,Store Purchase,5129,EARL - Communities,23A - Housing Solutions & Publ
Chorley Borough Council,http://Statistics.Data.gov.uk/id/local-Authority/30UE,01/05/2023,19.00,Shutterstock,Subscription - Communications,Online Purchase,4301,EARL - Communities,23A - Housing Solutions & Publ
Chorley Borough Council,http://Statistics.Data.gov.uk/id/local-Authority/30UE,15/05/2023,106.87,Morrisons,Mayoral changeover event,Online Purchase,4330,EARL - Communities,23A - Housing Solutions & Publ
Chorley Borough Council,http://Statistics.Data.gov.uk/id/local-Authority/30UE,15/05/2023,382.85,Slaters Menswear,Civics uniform,Store Purchase,4330,EARL - Communities,23A - Housing Solutions & Publ
Chorley Borough Council,http://Statistics.Data.gov.uk/id/local-Authority/30UE,19/05/2023,92.70,Argos,Tatton furnishings,Store Purchase,5129,EARL - Communities,23A - Housing Solutions & Publ
Chorley Borough Council,http://Statistics.Data.gov.uk/id/local-Authority/30UE,26/05/2023,276.97,AMAZON,Cotswold House Furniture,Online Purchase,5925,EARL - Communities,23A - Housing Solutions & Publ
Chorley Borough Council,http://Statistics.Data.gov.uk/id/local-Authority/30UE,27/05/2023,78.99,AMAZON,TATTON PARK ITEMS,Online Purchase,5129,EARL - Communities,23A - Housing Solutions & Publ
Chorley Borough Council,http://Statistics.Data.gov.uk/id/local-Authority/30UE,30/05/2023,163.93,Amazon,SHOKZ Openrun Headset,Online Purchase,4600,EARL - Communities,23A - Housing Solutions & Publ
Chorley Borough Council,http://Statistics.Data.gov.uk/id/local-Authority/30UE,01/06/2023,19.00,SHUTTERSTOCK,SUBSCRIPTION,Online Purchase,4301,EARL - Communities,23A - Housing Solutions & Publ
Chorley Borough Council,http://Statistics.Data.gov.uk/id/local-Authority/30UE,08/06/2023,56.97,AMAZON,IT`S ALL ABOUT US PRODUCTS - POPCORN BOXES2,Online Purchase,5400,EARL - Communities,23A - Housing Solutions & Publ
Chorley Borough Council,http://Statistics.Data.gov.uk/id/local-Authority/30UE,20/06/2023,714.00,Place North West,JOB LISTING,Online Purchase,5100,EARL - Communities,23A - Housing Solutions & Publ
Chorley Borough Council,http://Statistics.Data.gov.uk/id/local-Authority/30UE,22/06/2023,24.90,ASDA,ALL ABOUT YOU PRODUCTS,Store Purchase,5400,EARL - Communities,23A - Housing Solutions & Publ
Chorley Borough Council,http://Statistics.Data.gov.uk/id/local-Authority/30UE,22/06/2023,30.89,AMAZON,ALL ABOUT YOU - PAPER BAGS,Online Purchase,5400,EARL - Communities,23A - Housing Solutions & Publ
Chorley Borough Council,http://Statistics.Data.gov.uk/id/local-Authority/30UE,22/06/2023,94.00,TESCO,ALL ABOUT YOU PRODUCTS,Store Purchase,5400,EARL - Communities,23A - Housing Solutions & Publ
Chorley Borough Council,http://Statistics.Data.gov.uk/id/local-Authority/30UE,22/06/2023,138.99,AMAZON,ALL ABOUT YOU pb,Online Purchase,5400,EARL - Communities,23A - Housing Solutions & Publ
Chorley Borough Council,http://Statistics.Data.gov.uk/id/local-Authority/30UE,28/06/2023,22.00,LCC,Purchase of Death Certificate,Online Purchase,4614,EARL - Communities,23A - Housing Solutions & Publ
Chorley Borough Council,http://Statistics.Data.gov.uk/id/local-Authority/30UE,28/06/2023,61.93,Amazon,It`s all about us,Online Purchase,5400,EARL - Communities,23A - Housing Solutions & Publ
Chorley Borough Council,http://Statistics.Data.gov.uk/id/local-Authority/30UE,30/06/2023,30.40,B and M,All about us chocolates,Store Purchase,5400,EARL - Communities,23A - Housing Solutions & Publ
Chorley Borough Council,http://Statistics.Data.gov.uk/id/local-Authority/30UE,30/06/2023,500.00,Meta - Facebook,Chorley Flower Show publicity,Online Purchase,4305,EARL - Communities,23A - Housing Solutions & Publ
Chorley Borough Council,http://Statistics.Data.gov.uk/id/local-Authority/30UE,13/06/2023,202.50,DVLA Swansea,Vehicle tax VIN REDACTED,Road Tax,4736,CUST - Customer & Digital,21C - Streetscene
Chorley Borough Council,http://Statistics.Data.gov.uk/id/local-Authority/30UE,05/04/2023,15.00,Freethought,Freethought SSL certificate,Online Purchase,4512,CUST - Customer & Digital,21D - ICT
Chorley Borough Council,http://Statistics.Data.gov.uk/id/local-Authority/30UE,05/04/2023,15.00,Freethought,SSL certificates,Online Purchase,4512,CUST - Customer & Digital,21D - ICT
Chorley Borough Council,http://Statistics.Data.gov.uk/id/local-Authority/30UE,11/04/2023,100.50,Microsoft,Microsoft Cloud fees,Online Purchase,4512,CUST - Customer & Digital,21D - ICT
Chorley Borough Council,http://Statistics.Data.gov.uk/id/local-Authority/30UE,13/04/2023,24.00,Freethought,SSL certificate,Online Purchase,4512,CUST - Customer & Digital,21D - ICT
Chorley Borough Council,http://Statistics.Data.gov.uk/id/local-Authority/30UE,01/05/2023,7.50,Freethought,SSL certificates,Online Purchase,4512,CUST - Customer & Digital,21D - ICT
Chorley Borough Council,http://Statistics.Data.gov.uk/id/local-Authority/30UE,02/05/2023,7.50,Freethought,SSL certs,Online Purchase,4512,CUST - Customer & Digital,21D - ICT
Chorley Borough Council,http://Statistics.Data.gov.uk/id/local-Authority/30UE,11/05/2023,97.48,Microsoft,Microsoft cloud fees,Online Purchase,4512,CUST - Customer & Digital,21D - ICT
Chorley Borough Council,http://Statistics.Data.gov.uk/id/local-Authority/30UE,11/05/2023,696.00,IRRV,IRRV.org.uk professional membership,Online Purchase,4512,CUST - Customer & Digital,21D - ICT
Chorley Borough Council,http://Statistics.Data.gov.uk/id/local-Authority/30UE,14/05/2023,7.50,Freethought,SSL certificate,Online Purchase,4512,CUST - Customer & Digital,21D - ICT
Chorley Borough Council,http://Statistics.Data.gov.uk/id/local-Authority/30UE,06/06/2023,24.00,Freethought,Freethought SSL certificates,Online Purchase,4512,CUST - Customer & Digital,21D - ICT
Chorley Borough Council,http://Statistics.Data.gov.uk/id/local-Authority/30UE,07/06/2023,114.00,Freethought,Freethought Domain renewal,Online Purchase,4512,CUST - Customer & Digital,21D - ICT
Chorley Borough Council,http://Statistics.Data.gov.uk/id/local-Authority/30UE,08/06/2023,135.00,Freethought,Freethought domain renewal,Online Purchase,4512,CUST - Customer & Digital,21D - ICT
Chorley Borough Council,http://Statistics.Data.gov.uk/id/local-Authority/30UE,11/06/2023,96.23,Microsoft,Microsoft cloud fees,Court Fees,4512,CUST - Customer & Digital,21D - ICT
Chorley Borough Council,http://Statistics.Data.gov.uk/id/local-Authority/30UE,18/06/2023,24.00,Freethought,Freethought SSL certificate,Online Purchase,4512,CUST - Customer & Digital,21D - ICT
Chorley Borough Council,http://Statistics.Data.gov.uk/id/local-Authority/30UE,10/05/2023,400.00,Alderley Hotel,Alderley Hotel TA for NAMED REDACTED 10/05/23-19/05/23,Accomodation,5920,EARL - Communities,23A - Housing Solutions & Publ
Chorley Borough Council,http://Statistics.Data.gov.uk/id/local-Authority/30UE,19/05/2023,300.00,Alderley Hotel,NAME REDACTED at Alderley Hotel for NAME REDACTED,Accomodation,5920,EARL - Communities,23A - Housing Solutions & Publ
Chorley Borough Council,http://Statistics.Data.gov.uk/id/local-Authority/30UE,26/05/2023,300.00,Alderley Hotel,NAME REDACTED at Alderley Hotel for NAME REDACTED,Accomodation,5920,EARL - Communities,23A - Housing Solutions & Publ
Chorley Borough Council,http://Statistics.Data.gov.uk/id/local-Authority/30UE,31/05/2023,400.00,Alderley Hotel,Alderley hotel - B&B accommodation,Accomodation,5920,EARL - Communities,23A - Housing Solutions & Publ
Chorley Borough Council,http://Statistics.Data.gov.uk/id/local-Authority/30UE,08/06/2023,300.00,Alderley Hotel,NAME REDACTED from 10/06/23-17/06/23,Accomodation,5920,EARL - Communities,23A - Housing Solutions & Publ
Chorley Borough Council,http://Statistics.Data.gov.uk/id/local-Authority/30UE,15/06/2023,50.00,Alderley Hotel,1 x night at hotel for NAME REDACTED for Sunday 18/06/23,Accomodation,5920,EARL - Communities,23A - Housing Solutions & Publ
Chorley Borough Council,http://Statistics.Data.gov.uk/id/local-Authority/30UE,15/06/2023,55.00,Alderley Hotel,"NAME REDACTED, 1 night in Alderley Hotel 15/06/23",Accomodation,5920,EARL - Communities,23A - Housing Solutions & Publ
Chorley Borough Council,http://Statistics.Data.gov.uk/id/local-Authority/30UE,20/06/2023,0.00,Alderley Hotel,1 night at Alderley Hotel for NAME REDACTED,Accomodation,5920,EARL - Communities,23A - Housing Solutions & Publ
Chorley Borough Council,http://Statistics.Data.gov.uk/id/local-Authority/30UE,20/06/2023,55.00,Alderley Hotel,Temporary accommodation B&B for homelessness.,Accomodation,5920,EARL - Communities,23A - Housing Solutions & Publ
Chorley Borough Council,http://Statistics.Data.gov.uk/id/local-Authority/30UE,14/04/2023,300.00,Alderley Hotel,"Alderley Hotel, Blackpool - NAME REDACTED 14-04-2023 - 21-04-2023",Accomodation,5920,EARL - Communities,23A - Housing Solutions & Publ
Chorley Borough Council,http://Statistics.Data.gov.uk/id/local-Authority/30UE,21/04/2023,300.00,Alderley Hotel,"Alderley Hotel, Blackpool - NAME REDACTED 21-04-2023 - 28-04-2023",Accomodation,5920,EARL - Communities,23A - Housing Solutions & Publ
Chorley Borough Council,http://Statistics.Data.gov.uk/id/local-Authority/30UE,25/04/2023,300.00,Alderley Hotel,"Alderley Hotel, Blackpool - NAME REDACTED 28-04-2023 - 05-05-2023",Accomodation,5920,EARL - Communities,23A - Housing Solutions & Publ
Chorley Borough Council,http://Statistics.Data.gov.uk/id/local-Authority/30UE,14/06/2023,65.00,The Mercury Bolton,Hotel Placement - The Mercury Bolton - NAME REDACTED - 1 night,Accomodation,5920,EARL - Communities,23A - Housing Solutions & Publ
Chorley Borough Council,http://Statistics.Data.gov.uk/id/local-Authority/30UE,15/06/2023,263.00,The Mercury Bolton,Hotel Placement - The Mercury Bolton - NAME REDACTED- 4 nights,Accomodation,5920,EARL - Communities,23A - Housing Solutions & Publ
Chorley Borough Council,http://Statistics.Data.gov.uk/id/local-Authority/30UE,27/06/2023,130.00,The Mercury Bolton,Hotel Placement - The Mercury Hotel Bolton - NAME REDACTED 27/06,Accomodation,5920,EARL - Communities,23A - Housing Solutions & Publ
Chorley Borough Council,http://Statistics.Data.gov.uk/id/local-Authority/30UE,28/06/2023,133.00,The Mercury Bolton,Hotel Placement - The Mercury Hotel Bolton - NAME REDACTED 29/06 - 30/06,Accomodation,5920,EARL - Communities,23A - Housing Solutions & Publ
Chorley Borough Council,http://Statistics.Data.gov.uk/id/local-Authority/30UE,21/06/2023,55.00,ALDERLY HOTEL,HOTEL BOOKING NAME REDACTED,Accomodation,5920,EARL - Communities,23A - Housing Solutions & Publ
Chorley Borough Council,http://Statistics.Data.gov.uk/id/local-Authority/30UE,22/06/2023,55.00,ALDERLY HOTEL,HOTEL BOOKING FOR NAME REDACTED,Accomodation,5920,EARL - Communities,23A - Housing Solutions & Publ
Chorley Borough Council,http://Statistics.Data.gov.uk/id/local-Authority/30UE,07/04/2023,9.35,Meta,Facebook Ads Battery campaign,Online Purchase,4660,GOVN - Policy & Governance,22D - Communications & Visitor
Chorley Borough Council,http://Statistics.Data.gov.uk/id/local-Authority/30UE,07/04/2023,32.20,Meta,Facebook ads markets,Online Purchase,5120,GOVN - Policy & Governance,22D - Communications & Visitor
Chorley Borough Council,http://Statistics.Data.gov.uk/id/local-Authority/30UE,07/04/2023,33.03,Meta,Facebook Ads business engagement,Online Purchase,5101,GOVN - Policy & Governance,22D - Communications & Visitor
Chorley Borough Council,http://Statistics.Data.gov.uk/id/local-Authority/30UE,07/04/2023,125.42,Meta,Chorley 10k facebook ads,Online Purchase,4307,GOVN - Policy & Governance,22D - Communications & Visitor
Chorley Borough Council,http://Statistics.Data.gov.uk/id/local-Authority/30UE,18/04/2023,76.00,Harrogate Flower Show,3 Tickets for Harrogate Flower Show,Online Purchase,4305,GOVN - Policy & Governance,22D - Communications & Visitor
Chorley Borough Council,http://Statistics.Data.gov.uk/id/local-Authority/30UE,18/04/2023,477.00,Hotels.com,The Hartwood Hall Hotel for the Chorley Flower Show,Online Purchase,4305,GOVN - Policy & Governance,22D - Communications & Visitor
Chorley Borough Council,http://Statistics.Data.gov.uk/id/local-Authority/30UE,23/04/2023,5.48,Meta,Facebook ads market,Online Purchase,5120,GOVN - Policy & Governance,22D - Communications & Visitor
Chorley Borough Council,http://Statistics.Data.gov.uk/id/local-Authority/30UE,23/04/2023,29.04,Meta,Facebook ads business innovation,Online Purchase,5101,GOVN - Policy & Governance,22D - Communications & Visitor
Chorley Borough Council,http://Statistics.Data.gov.uk/id/local-Authority/30UE,23/04/2023,30.19,Meta,Facebook ads chorley 10k,Online Purchase,4307,GOVN - Policy & Governance,22D - Communications & Visitor
Chorley Borough Council,http://Statistics.Data.gov.uk/id/local-Authority/30UE,24/04/2023,8.35,Meta,Facebook Ads Business Innovation,Online Purchase,5101,GOVN - Policy & Governance,22D - Communications & Visitor
Chorley Borough Council,http://Statistics.Data.gov.uk/id/local-Authority/30UE,24/04/2023,56.36,Meta,Facebook Ads CFS,Online Purchase,4305,GOVN - Policy & Governance,22D - Communications & Visitor
Chorley Borough Council,http://Statistics.Data.gov.uk/id/local-Authority/30UE,24/04/2023,92.79,Meta,Facebook Ads Battery Campaign SR,Online Purchase,4301,GOVN - Policy & Governance,22D - Communications & Visitor
Chorley Borough Council,http://Statistics.Data.gov.uk/id/local-Authority/30UE,24/04/2023,142.50,Meta,Facebook Ads leisure centre,Online Purchase,4301,GOVN - Policy & Governance,22D - Communications & Visitor
Chorley Borough Council,http://Statistics.Data.gov.uk/id/local-Authority/30UE,25/04/2023,0.91,Meta,Facebook Ads,Online Purchase,4301,GOVN - Policy & Governance,22D - Communications & Visitor
Chorley Borough Council,http://Statistics.Data.gov.uk/id/local-Authority/30UE,25/04/2023,1.11,Meta,Facebook Ads CFS,Online Purchase,4305,GOVN - Policy & Governance,22D - Communications & Visitor
Chorley Borough Council,http://Statistics.Data.gov.uk/id/local-Authority/30UE,26/04/2023,31.96,Amazon,"Mayoii 20 PCS Coronation Bunting, 19.6FT Coronation Flags King Charles - x4",Online Purchase,4307,GOVN - Policy & Governance,22D - Communications & Visitor
Chorley Borough Council,http://Statistics.Data.gov.uk/id/local-Authority/30UE,12/05/2023,14.05,Meta,Facebook Ads Chorley 10k,Online Purchase,4307,GOVN - Policy & Governance,22D - Communications & Visitor
Chorley Borough Council,http://Statistics.Data.gov.uk/id/local-Authority/30UE,12/05/2023,78.80,Meta,Facebook Ads CFS,Online Purchase,4305,GOVN - Policy & Governance,22D - Communications & Visitor
Chorley Borough Council,http://Statistics.Data.gov.uk/id/local-Authority/30UE,12/05/2023,100.97,Meta,Facebook Ads PIcnic,Online Purchase,4307,GOVN - Policy & Governance,22D - Communications & Visitor
Chorley Borough Council,http://Statistics.Data.gov.uk/id/local-Authority/30UE,12/05/2023,106.18,Meta,Facebook Ads Leisure Centres,Online Purchase,4301,GOVN - Policy & Governance,22D - Communications & Visitor
Chorley Borough Council,http://Statistics.Data.gov.uk/id/local-Authority/30UE,16/05/2023,98.95,Argos,Argos gimbal for video,Online Purchase,4301,GOVN - Policy & Governance,22D - Communications & Visitor
Chorley Borough Council,http://Statistics.Data.gov.uk/id/local-Authority/30UE,16/05/2023,102.12,Amazon Web Services EMEA SARL,Amazon video equipment,Online Purchase,4301,GOVN - Policy & Governance,22D - Communications & Visitor
Chorley Borough Council,http://Statistics.Data.gov.uk/id/local-Authority/30UE,17/05/2023,54.99,B&Q,Oypla Black Heavy Duty Foldable Garden Festival Trolley Folding Cart Wagon Truck Wheelbarrow,Online Purchase,4307,GOVN - Policy & Governance,22D - Communications & Visitor
Chorley Borough Council,http://Statistics.Data.gov.uk/id/local-Authority/30UE,23/05/2023,65.00,Meta,Facebook Ads Chorley 10k,Online Purchase,4307,GOVN - Policy & Governance,22D - Communications & Visitor
Chorley Borough Council,http://Statistics.Data.gov.uk/id/local-Authority/30UE,25/05/2023,13.73,Meta,Facebook Ads,Online Purchase,4305,GOVN - Policy & Governance,22D - Communications & Visitor
Chorley Borough Council,http://Statistics.Data.gov.uk/id/local-Authority/30UE,25/05/2023,68.60,Meta,Facebook Ads ATOC,Online Purchase,4307,GOVN - Policy & Governance,22D - Communications & Visitor
Chorley Borough Council,http://Statistics.Data.gov.uk/id/local-Authority/30UE,25/05/2023,69.09,Meta,Facebook Ads,Online Purchase,4301,GOVN - Policy & Governance,22D - Communications & Visitor
Chorley Borough Council,http://Statistics.Data.gov.uk/id/local-Authority/30UE,08/06/2023,103.99,Premier Inn,Premier Inn Room for Artist and Breakfast,Online Purchase,5240,GOVN - Policy & Governance,22D - Communications & Visitor
Chorley Borough Council,http://Statistics.Data.gov.uk/id/local-Authority/30UE,25/06/2023,115.41,Meta,Facebook Ads Leisure Centres,Online Purchase,4301,GOVN - Policy & Governance,22D - Communications & Visitor
Chorley Borough Council,http://Statistics.Data.gov.uk/id/local-Authority/30UE,25/06/2023,122.89,Meta,ATOC ads,Online Purchase,4307,GOVN - Policy & Governance,22D - Communications & Visitor
Chorley Borough Council,http://Statistics.Data.gov.uk/id/local-Authority/30UE,30/06/2023,20.56,Amazon,Amazon Plastic Wallets for The Chorley Flower Show,Online Purchase,4305,GOVN - Policy & Governance,22D - Communications & Visitor
Chorley Borough Council,http://Statistics.Data.gov.uk/id/local-Authority/30UE,22/05/2023,7.00,Poundland,Sponsor support network refreshments,Store Purchase,5935,EARL - Communities,23C - Communities
Chorley Borough Council,http://Statistics.Data.gov.uk/id/local-Authority/30UE,25/05/2023,166.40,Cotswold House,HFU Scheme - Housing Cost - Cotswold Arrears - NAME REDACTED,Accomodation,5935,EARL - Communities,23C - Communities
Chorley Borough Council,http://Statistics.Data.gov.uk/id/local-Authority/30UE,07/06/2023,5.00,Inspire Youth Zone,UKRS Community Integration - Inspire Registration,Online Purchase,5929,EARL - Communities,23C - Communities
Chorley Borough Council,http://Statistics.Data.gov.uk/id/local-Authority/30UE,07/06/2023,5.00,Inspire Youth Zone,UKRS Community Integration - Inspire Registration,Online Purchase,5929,EARL - Communities,23C - Communities
Chorley Borough Council,http://Statistics.Data.gov.uk/id/local-Authority/30UE,07/06/2023,5.00,Inspire Youth Zone,UKRS Community Integration - Inspire Registration,Online Purchase,5929,EARL - Communities,23C - Communities
Chorley Borough Council,http://Statistics.Data.gov.uk/id/local-Authority/30UE,03/04/2023,66.00,National Archives,records on disposal of radioactive waste at Whittle Hill Quarry,Online Purchase,4660,CUST - Customer & Digital,21C - Streetscene
Chorley Borough Council,http://Statistics.Data.gov.uk/id/local-Authority/30UE,25/05/2023,54.05,RAM Mounts UK Ltd,POD I Universal No-Drill� Vehicle Mount w/ AMPS Adapter for Refuse Collection Vehicle,Online Purchase,4736,CUST - Customer & Digital,21C - Streetscene
